bitfinex-derivatives/quotes_BTCF0:USTF0_20250320
["timestamp","ask_amount","ask_price","bid_price","bid_amount"]
[1742439804245,0.5105249,86072.0,86071.0,0.1313255]
[1742439804447,0.5105249,86072.0,86071.0,0.1641255]
[1742439811456,0.0929336,86064.0,86062.0,0.0929354]
[1742439811659,0.0929336,86064.0,86063.0,0.12560892]
[1742439812157,0.10428549,86064.0,86063.0,0.12560892]
[1742439812361,0.13638549,86064.0,86063.0,0.12560892]
[1742439812860,0.16878549,86064.0,86063.0,0.15860892]
[1742439814054,0.1574336,86064.0,86063.0,0.15860892]
[1742439815155,0.16919753,86064.0,86063.0,0.15860892]
[1742439816056,0.1574336,86064.0,86063.0,0.15860892]
[1742439819265,0.1574336,86064.0,86063.0,0.06567422]
[1742439821055,0.1574336,86064.0,86063.0,0.15860892]
[1742439821454,0.1574336,86064.0,86063.0,0.06567422]
[1742439823560,0.1574336,86064.0,86063.0,0.12660892]
[1742439824467,0.1574336,86064.0,86063.0,0.15940892]
[1742439825667,0.5182336,86064.0,86063.0,0.15940892]
[1742439826467,0.5182336,86064.0,86063.0,0.06647422]
[1742439830565,0.5182336,86064.0,86063.0,0.03367422]
[1742439830769,0.5182336,86064.0,86063.0,0.00117422]
[1742439838281,0.1574336,86064.0,86063.0,0.00117422]
[1742439838481,0.5182336,86064.0,86063.0,0.00117422]
[1742439840277,0.11456,86064.0,86063.0,0.09410892]
[1742439840485,0.001,86064.0,86063.0,0.09410892]
[1742439840875,0.0939336,86064.0,86063.0,0.09410892]
[1742439841273,0.001,86064.0,86063.0,0.10569348]
[1742439841479,0.0939336,86064.0,86063.0,0.10569348]
[1742439842179,0.0939336,86064.0,86063.0,0.09410892]
[1742439842682,0.0939336,86064.0,86063.0,0.10577237]
[1742439843785,0.0939336,86064.0,86063.0,0.20577237]
[1742439844083,0.001,86064.0,86063.0,0.20577237]
[1742439844283,0.001,86064.0,86063.0,0.42933237]
[1742439844780,0.0929955,86081.0,86074.0,0.0464612]
[1742439844986,0.10480022,86081.0,86080.0,0.0929163]
[1742439845188,8e-05,86081.0,86080.0,0.3429163]
[1742439845490,0.3608,86090.0,86089.0,0.0929066]
[1742439845691,0.0929055,86090.0,86089.0,0.232266]
[1742439846080,0.123304,86092.0,86091.0,0.0929044]
[1742439846292,0.1393525,86094.0,86093.0,0.0929023]
[1742439846478,0.150793,86094.0,86093.0,0.0929023]
[1742439846880,0.214993,86094.0,86093.0,0.1230023]
[1742439847284,0.214993,86094.0,86093.0,0.0301]
[1742439847784,0.220993,86094.0,86093.0,0.0301]
[1742439849194,0.220993,86094.0,86093.0,0.1230023]
[1742439852491,0.220993,86094.0,86093.0,0.0301]
[1742439852890,0.220993,86094.0,86093.0,0.1230023]
[1742439853087,0.220993,86094.0,86093.0,0.0608]
[1742439853697,0.1393705,86084.0,86083.0,0.092912]
[1742439853895,0.1393705,86084.0,86083.0,0.123612]
[1742439854099,0.2374705,86084.0,86083.0,0.123612]
[1742439854988,0.2384705,86084.0,86083.0,0.123612]
[1742439855701,0.1455564,86084.0,86082.0,0.0302]
[1742439855886,0.0929141,86082.0,86081.0,0.00017422]
[1742439859095,0.1575141,86082.0,86081.0,0.00017422]
[1742439862804,0.1575141,86082.0,86081.0,0.09308942]
[1742439863199,0.2710341,86082.0,86081.0,0.15388942]
[1742439863602,0.0929141,86082.0,86081.0,0.15388942]
[1742439867306,0.0464555,86085.0,86084.0,0.0929109]
[1742439867498,0.0464555,86085.0,86084.0,0.3729109]
[1742439867699,0.0464555,86085.0,86084.0,0.4383109]
[1742439868407,0.1403693,86085.0,86084.0,0.1583109]
[1742439868708,0.1413693,86085.0,86084.0,0.1583109]
[1742439869904,0.1413693,86085.0,86084.0,0.2683109]
[1742439874313,0.1714693,86085.0,86084.0,0.0332]
[1742439874511,0.0929141,86082.0,86081.0,0.00017422]
[1742439875013,0.0929141,86082.0,86081.0,0.12378942]
[1742439875413,0.1230141,86082.0,86081.0,0.12378942]
[1742439877110,0.11348,86085.0,86082.0,0.0464565]
[1742439877304,0.2063912,86085.0,86084.0,0.092912]
[1742439877708,0.2063912,86085.0,86084.0,0.157112]
[1742439878912,0.2063912,86085.0,86084.0,0.0642]
[1742439879117,0.2063912,86085.0,86084.0,0.157112]
[1742439880217,0.2073912,86085.0,86084.0,0.157112]
[1742439880823,0.2083912,86085.0,86084.0,0.157112]
[1742439881214,0.2083912,86085.0,86084.0,0.0642]
[1742439881520,0.2083912,86085.0,86084.0,0.031]
[1742439883017,0.5691912,86085.0,86084.0,0.031]
[1742439883423,0.5227359,86085.0,86081.0,0.00017422]
[1742439883622,0.0929141,86082.0,86081.0,0.00017422]
[1742439888221,0.1394014,86065.0,86064.0,0.0929335]
[1742439888421,0.0929336,86064.0,86063.0,0.0633]
[1742439888620,0.13677829,86064.0,86063.0,0.0325]
[1742439889425,0.49757829,86064.0,86063.0,0.0325]
[1742439889621,0.52907829,86064.0,86063.0,0.0325]
[1742439890821,0.53007829,86064.0,86063.0,0.0325]
[1742439891621,0.53007829,86064.0,86063.0,0.0654]
[1742439892228,0.53007829,86064.0,86063.0,0.1583347]
[1742439893929,0.53007829,86064.0,86063.0,0.0654]
[1742439894330,0.53007829,86064.0,86063.0,0.0325]
[1742439895525,0.0929357,86062.0,86061.0,0.0929365]
[1742439896124,0.0929357,86062.0,86061.0,0.1581365]
[1742439897030,0.0949357,86062.0,86061.0,0.1581365]
[1742439897923,0.1579357,86062.0,86061.0,0.1581365]
[1742439900232,0.002,86062.0,86061.0,0.1581365]
[1742439900427,0.0949357,86062.0,86061.0,0.5189365]
[1742439900622,0.002,86062.0,86061.0,0.5189365]
[1742439900827,0.0464606,86076.0,86068.0,0.0464644]
[1742439901028,0.13939,86071.0,86070.0,0.092926]
[1742439901222,0.0464635,86071.0,86070.0,0.372926]
[1742439901638,0.0464635,86071.0,86070.0,0.466626]
[1742439903634,0.0464635,86071.0,86070.0,0.0937]
[1742439903834,0.1081635,86071.0,86070.0,0.1543271]
[1742439904153,0.1392635,86071.0,86070.0,0.1543271]
[1742439904338,0.0464635,86071.0,86070.0,0.1543271]
[1742439907338,0.0767635,86071.0,86070.0,0.1543271]
[1742439907635,0.1072635,86071.0,86070.0,0.1543271]
[1742439910843,0.0767635,86071.0,86070.0,0.1543271]
[1742439911042,0.09313912,86072.0,86071.0,0.092926]
[1742439911242,0.09313912,86072.0,86071.0,0.159126]
[1742439911537,0.09309912,86072.0,86071.0,0.159126]
[1742439912232,0.15449912,86072.0,86071.0,0.159126]
[1742439913442,0.09309912,86072.0,86071.0,0.159126]
[1742439914746,0.15719912,86072.0,86071.0,0.159126]
[1742439915940,0.18859912,86072.0,86071.0,0.159126]
[1742439917938,0.54939912,86072.0,86071.0,0.159126]
[1742439919450,0.54939912,86072.0,86071.0,0.0662]
[1742439919639,0.54939912,86072.0,86071.0,0.159126]
[1742439921448,0.54939912,86072.0,86071.0,0.0662]
[1742439921650,0.54939912,86072.0,86071.0,0.159126]
[1742439922449,0.54939912,86072.0,86071.0,0.0662]
[1742439922652,0.18859912,86072.0,86071.0,0.0662]
[1742439922843,0.54939912,86072.0,86071.0,0.159126]
[1742439923449,0.54939912,86072.0,86071.0,0.0662]
[1742439924743,0.54939912,86072.0,86071.0,0.159126]
[1742439925253,0.0929282,86069.0,86068.0,0.0929282]
[1742439926154,0.0929282,86069.0,86068.0,0.1568282]
[1742439932245,0.0929282,86069.0,86068.0,0.1968282]
[1742439932453,0.15779913,86072.0,86071.0,0.092926]
[1742439932653,0.00017422,86072.0,86071.0,0.182926]
[1742439933160,0.00017422,86072.0,86071.0,0.206366]
[1742439933347,0.02708286,86088.0,86086.0,0.0929098]
[1742439933652,0.02708286,86088.0,86087.0,0.0929088]
[1742439933856,0.13440011,86098.0,86097.0,0.092898]
[1742439934251,0.22729701,86098.0,86097.0,0.092898]
[1742439934658,0.0928969,86098.0,86097.0,0.157298]
[1742439935257,0.22746263,86106.0,86105.0,0.0928893]
[1742439935760,0.28846263,86106.0,86105.0,0.0928893]
[1742439936153,0.28846263,86106.0,86105.0,0.1572893]
[1742439936654,0.29346263,86106.0,86105.0,0.1572893]
[1742439936961,0.30517535,86106.0,86105.0,0.1572893]
[1742439937662,0.31017535,86106.0,86105.0,0.1572893]
[1742439937851,0.14457433,86106.0,86105.0,0.1572893]
[1742439939057,0.01017422,86106.0,86105.0,0.1572893]
[1742439939861,0.11442198,86106.0,86105.0,0.0644]
[1742439940062,0.17802198,86106.0,86105.0,0.1572893]
[1742439940262,0.20812198,86106.0,86105.0,0.1572893]
[1742439940960,0.21765861,86106.0,86105.0,0.1572893]
[1742439941850,0.21765861,86106.0,86105.0,0.12098478]
[1742439942961,0.20812198,86106.0,86105.0,0.12098478]
[1742439947564,0.17802198,86106.0,86105.0,0.12098478]
[1742439956165,0.16666242,86106.0,86105.0,0.12098478]
[1742439957274,0.17800388,86106.0,86105.0,0.12098478]
[1742439962372,0.0928936,86102.0,86101.0,0.092893]
[1742439962572,0.0928936,86102.0,86101.0,0.125293]
[1742439962776,0.1887936,86102.0,86101.0,0.125293]
[1742439963974,0.1937936,86102.0,86101.0,0.125293]
[1742439964190,0.005,86102.0,86101.0,0.23706229]
[1742439964377,0.0366,86102.0,86101.0,0.26796229]
[1742439964773,0.1344926,86102.0,86101.0,1.76796229]
[1742439965666,0.0416,86102.0,86101.0,1.76796229]
[1742439966779,0.0929201,86114.0,86107.0,0.0464433]
[1742439967077,0.0464798,86114.0,86113.0,0.0928807]
[1742439967282,0.0464398,86114.0,86113.0,0.3328807]
[1742439967583,0.0776398,86114.0,86113.0,0.3328807]
[1742439967782,0.0776398,86114.0,86113.0,0.0928807]
[1742439967982,0.1088398,86114.0,86113.0,0.1544807]
[1742439968477,0.1138398,86114.0,86113.0,0.1544807]
[1742439969187,0.1188398,86114.0,86113.0,0.1544807]
[1742439973979,0.1188398,86114.0,86113.0,0.1239807]
[1742439974183,0.1188398,86114.0,86113.0,0.0311]
[1742439974381,0.1188398,86114.0,86113.0,0.1239807]
[1742439975184,0.0928807,86113.0,86112.0,0.0928808]
[1742439975487,0.0928904,86104.0,86103.0,0.1393336]
[1742439976378,0.1243904,86104.0,86103.0,0.1393336]
[1742439976787,0.1583904,86104.0,86103.0,0.1697336]
[1742439977387,0.16984581,86104.0,86103.0,0.1697336]
[1742439978579,0.16984581,86104.0,86103.0,0.1393336]
[1742439978775,0.17184581,86104.0,86103.0,0.1393336]
[1742439979081,0.17584581,86104.0,86103.0,0.1393336]
[1742439979784,0.17084581,86104.0,86103.0,0.1393336]
[1742439979978,0.17484581,86104.0,86103.0,0.1393336]
[1742439980691,0.17084581,86104.0,86103.0,0.1393336]
[1742439980883,0.17584581,86104.0,86103.0,0.1393336]
[1742439981390,0.17584581,86104.0,86103.0,0.1708336]
[1742439981982,0.17484581,86104.0,86103.0,0.1708336]
[1742439996399,0.17084581,86104.0,86103.0,0.1708336]
[1742439996691,0.17584581,86104.0,86103.0,0.1708336]
[1742439996897,0.17184581,86104.0,86103.0,0.1708336]
[1742439997100,0.17684581,86104.0,86103.0,0.1708336]
[1742439998385,0.17184581,86104.0,86103.0,0.1708336]
[1742439998588,0.17584581,86104.0,86103.0,0.1708336]
[1742439999100,0.17184581,86104.0,86103.0,0.1708336]
[1742439999297,0.17584581,86104.0,86103.0,0.1708336]
[1742440000090,0.17484581,86104.0,86103.0,0.1708336]
[1742440001598,0.0395,86104.0,86103.0,0.2708336]
[1742440002199,0.0395,86104.0,86103.0,0.3708336]
[1742440002200,0.008,86104.0,86103.0,0.3708336]
[1742440002393,0.008,86104.0,86103.0,0.4009336]
[1742440004899,0.008,86104.0,86103.0,0.4109336]
[1742440006494,0.008,86104.0,86103.0,0.3009336]
[1742440006707,0.008,86104.0,86103.0,0.4109336]
[1742440011595,0.0384,86104.0,86103.0,0.4109336]
[1742440012393,0.008,86104.0,86103.0,0.4109336]
[1742440015613,0.0401,86104.0,86103.0,0.4109336]
[1742440016216,0.0725,86104.0,86103.0,0.4109336]
[1742440018411,0.0401,86104.0,86103.0,0.4109336]
[1742440019413,0.0716,86104.0,86103.0,0.4109336]
[1742440020505,0.0401,86104.0,86103.0,0.4109336]
[1742440021405,0.0717,86104.0,86103.0,0.4109336]
[1742440021622,0.0717,86104.0,86103.0,0.2009336]
[1742440021818,0.0717,86104.0,86103.0,0.3009336]
[1742440024116,0.0717,86104.0,86103.0,0.6617336]
[1742440029618,0.08129678,86104.0,86103.0,0.6617336]
[1742440030322,0.09079656,86104.0,86103.0,0.6617336]
[1742440031514,0.09079656,86104.0,86103.0,0.6152882]
[1742440032018,0.09079656,86104.0,86103.0,0.6617329]
[1742440032621,0.08119978,86104.0,86103.0,0.6617329]
[1742440033012,0.0717,86104.0,86103.0,0.6617329]
[1742440033419,0.1048,86104.0,86103.0,0.6617329]
[1742440034625,0.1048,86104.0,86103.0,0.6316329]
[1742440036227,0.1048,86104.0,86103.0,0.6644329]
[1742440037026,0.1048,86104.0,86103.0,0.3036329]
[1742440037526,0.11430074,86104.0,86103.0,0.3036329]
[1742440039628,0.08120074,86104.0,86103.0,0.3036329]
[1742440040032,0.0331,86113.0,86109.0,0.0464422]
[1742440040232,0.0331,86113.0,86112.0,0.0928818]
[1742440040419,0.0331,86113.0,86112.0,0.3628818]
[1742440041438,0.0381,86113.0,86112.0,0.3935818]
[1742440041733,0.0441,86113.0,86112.0,0.3935818]
[1742440042728,0.0441,86113.0,86112.0,1.8935818]
[1742440043131,0.0441,86113.0,86112.0,1.9264818]
[1742440043525,0.0441,86113.0,86112.0,0.4264818]
[1742440043731,0.1059,86113.0,86112.0,0.4264818]
[1742440045235,0.0728,86113.0,86112.0,0.4264818]
[1742440045437,0.0423,86113.0,86112.0,0.4264818]
[1742440046042,0.0423,86113.0,86112.0,1.9264818]
[1742440047633,0.0756,86113.0,86112.0,1.9264818]
[1742440050437,0.011,86113.0,86112.0,1.9264818]
[1742440050841,0.0437,86113.0,86112.0,1.9264818]
[1742440051328,0.4902157,86135.0,86134.0,0.0928581]
[1742440051528,0.4636634,86135.0,86134.0,0.3428581]
[1742440051734,0.34664462,86135.0,86134.0,0.35446688]
[1742440051943,0.34664462,86135.0,86134.0,0.71526688]
[1742440052134,0.34664462,86135.0,86134.0,0.77846688]
[1742440052640,0.35264462,86135.0,86134.0,0.77846688]
[1742440053029,0.38524462,86135.0,86134.0,0.77846688]
[1742440053633,0.38724462,86135.0,86134.0,0.77846688]
[1742440054441,0.41734462,86135.0,86134.0,0.77846688]
[1742440055537,0.41134462,86135.0,86134.0,0.77846688]
[1742440055936,0.0647,86135.0,86134.0,0.77846688]
[1742440059443,0.002,86135.0,86134.0,0.77846688]
[1742440061247,0.002,86135.0,86134.0,2.27846688]
[1742440062441,0.0663,86135.0,86134.0,2.27846688]
[1742440062945,4e-05,86136.0,86135.0,0.092857]
[1742440063149,4e-05,86136.0,86135.0,0.342857]
[1742440063345,4e-05,86136.0,86135.0,0.406457]
[1742440063740,4e-05,86136.0,86135.0,0.496457]
[1742440064039,0.03217422,86143.0,86142.0,0.0928494]
[1742440064242,0.03217422,86143.0,86142.0,0.3628494]
[1742440064745,0.03217422,86143.0,86142.0,1.8628494]
[1742440065044,0.03217422,86143.0,86142.0,1.9264494]
[1742440065448,0.03417422,86143.0,86142.0,1.9264494]
[1742440065642,0.03417422,86143.0,86142.0,0.4264494]
[1742440066246,0.06657422,86143.0,86142.0,0.4264494]
[1742440066648,0.06757422,86143.0,86142.0,0.4264494]
[1742440067042,0.03517422,86143.0,86142.0,0.4264494]
[1742440071051,2e-08,86143.0,86142.0,0.79602931]
[1742440071345,0.0625,86156.0,86155.0,0.0928354]
[1742440071541,0.0625,86156.0,86155.0,0.3528354]
[1742440072054,0.0625,86156.0,86155.0,0.4192354]
[1742440074754,0.0625,86156.0,86155.0,0.43105863]
[1742440075956,0.07407874,86156.0,86155.0,0.1592354]
[1742440081242,0.10667874,86156.0,86155.0,0.1592354]
[1742440082454,0.19951304,86156.0,86155.0,0.1592354]
[1742440082758,0.10667874,86156.0,86155.0,0.1592354]
[1742440083451,0.10458343,86156.0,86155.0,0.2592354]
[1742440084265,0.0951,86156.0,86155.0,0.2592354]
[1742440085161,0.0625,86156.0,86155.0,0.2592354]
[1742440085751,0.37224434,86162.0,86161.0,0.092829]
[1742440085752,0.46507294,86162.0,86161.0,0.092829]
[1742440086655,0.46507294,86162.0,86161.0,0.156129]
[1742440086855,0.10427294,86162.0,86161.0,0.156129]
[1742440087057,0.46507294,86162.0,86161.0,0.156129]
[1742440088966,0.3608,86162.0,86161.0,0.156129]
[1742440089156,0.4536279,86162.0,86161.0,0.156129]
[1742440089357,0.46514408,86162.0,86161.0,0.156129]
[1742440092652,0.4536279,86162.0,86161.0,0.156129]
[1742440093251,0.3608,86162.0,86161.0,0.296129]
[1742440093456,4e-05,86165.0,86164.0,0.0928257]
[1742440093668,0.0148729,86170.0,86169.0,0.0928203]
[1742440093861,0.0148729,86170.0,86169.0,1.0866603]
[1742440094062,0.0148729,86170.0,86169.0,1.0981833]
[1742440094259,0.0148729,86170.0,86169.0,2.5981833]
[1742440094460,0.0148729,86170.0,86169.0,2.6583833]
[1742440098473,4e-05,86172.0,86171.0,0.0928182]
[1742440098768,4e-05,86185.0,86184.0,0.0928042]
[1742440098957,4e-05,86185.0,86184.0,0.6228042]
[1742440099670,0.00952479,86185.0,86184.0,0.63449899]
[1742440100774,0.00952479,86185.0,86184.0,0.6228042]
[1742440101164,0.04092479,86185.0,86184.0,0.6228042]
[1742440103664,0.00952479,86185.0,86184.0,0.6228042]
[1742440104064,0.00952479,86185.0,86184.0,0.6848042]
[1742440112579,0.03992479,86185.0,86184.0,0.6848042]
[1742440119378,0.13272789,86185.0,86184.0,0.592]
[1742440119574,0.13272789,86185.0,86183.0,0.3096]
[1742440119575,0.0928042,86184.0,86183.0,0.3096]
[1742440119879,0.0928042,86184.0,86183.0,0.3662953]
[1742440119880,0.4842042,86184.0,86183.0,0.3662953]
[1742440120176,0.53414246,86184.0,86183.0,0.29374427]
[1742440120380,0.53414246,86184.0,86183.0,0.2908853]
[1742440121180,0.52448899,86184.0,86183.0,0.2908853]
[1742440121792,0.52448899,86184.0,86183.0,0.3216853]
[1742440123183,0.52448899,86184.0,86183.0,0.25638974]
[1742440123374,0.52448899,86184.0,86183.0,0.2404653]
[1742440123774,0.52448899,86184.0,86183.0,0.2718653]
[1742440125284,0.52448899,86184.0,86183.0,0.2096653]
[1742440125785,0.52448899,86184.0,86183.0,0.2139653]
[1742440126381,0.52448899,86184.0,86183.0,0.2445653]
[1742440129678,0.46308899,86184.0,86183.0,0.2445653]
[1742440130591,0.49368899,86184.0,86183.0,0.2445653]
[1742440131689,0.49368899,86184.0,86183.0,0.2379253]
[1742440131988,0.49368899,86184.0,86183.0,0.14512]
[1742440132489,0.49368899,86184.0,86183.0,0.08122]
[1742440133095,0.50327456,86184.0,86183.0,0.04494153]
[1742440133286,0.0928053,86183.0,86182.0,0.14968]
[1742440133480,0.13539087,86183.0,86182.0,0.1235595]
[1742440133685,0.19230908,86183.0,86182.0,0.06846]
[1742440133989,0.19230908,86183.0,86182.0,0.01723]
[1742440134293,0.18272486,86183.0,86182.0,0.01723]
[1742440134488,0.16669009,86183.0,86182.0,0.08033]
[1742440137891,0.88829009,86183.0,86182.0,0.08033]
[1742440141999,0.60905009,86183.0,86182.0,0.2731363]
[1742440143503,0.60905009,86183.0,86182.0,0.05033]
[1742440144394,0.60905009,86183.0,86182.0,0.08103]
[1742440144587,0.96985009,86183.0,86182.0,0.08103]
[1742440145099,0.96985009,86183.0,86182.0,0.1738363]
[1742440145301,0.96985009,86183.0,86182.0,0.08103]
[1742440145599,0.96985009,86183.0,86182.0,0.1738363]
[1742440148496,0.57605009,86183.0,86182.0,0.1738363]
[1742440149792,0.60715009,86183.0,86182.0,0.1738363]
[1742440150396,0.57605009,86183.0,86182.0,0.08103]
[1742440150994,0.63905009,86183.0,86182.0,0.08103]
[1742440151393,0.63905009,86183.0,86182.0,0.04475206]
[1742440151702,0.63905009,86183.0,86182.0,0.01405206]
[1742440151903,0.63905009,86183.0,86182.0,0.04575206]
[1742440154699,0.6295653,86183.0,86182.0,0.04575206]
[1742440155506,0.63905819,86183.0,86182.0,0.00056982]
[1742440155809,0.63905819,86183.0,86182.0,0.09337612]
[1742440156005,0.63905819,86183.0,86182.0,0.00056982]
[1742440156206,0.63905819,86183.0,86182.0,0.09337612]
[1742440157697,0.6295653,86183.0,86182.0,0.09337612]
[1742440158608,0.6295653,86183.0,86182.0,0.00056982]
[1742440159201,0.5974653,86183.0,86182.0,0.09337612]
[1742440160108,0.4845053,86183.0,86182.0,0.09337612]
[1742440160301,0.5665253,86183.0,86182.0,0.09337612]
[1742440160803,0.5974253,86183.0,86182.0,0.09337612]
[1742440161107,0.5665253,86183.0,86182.0,0.09337612]
[1742440161509,0.4536053,86183.0,86182.0,0.09337612]
[1742440161698,0.5665253,86183.0,86182.0,0.09337612]
[1742440162405,0.5974253,86183.0,86182.0,0.09337612]
[1742440162796,0.37032473,86183.0,86182.0,0.09337612]
[1742440163107,0.00952473,86183.0,86182.0,0.19337612]
[1742440163309,0.10233003,86183.0,86182.0,0.15710197]
[1742440164400,0.10233003,86183.0,86182.0,0.05710197]
[1742440164803,0.0928053,86183.0,86182.0,0.05710197]
[1742440165005,0.4536053,86183.0,86182.0,0.05710197]
[1742440166012,0.46309414,86183.0,86182.0,0.05710197]
[1742440166510,0.37028884,86183.0,86182.0,0.05710197]
[1742440166708,0.4536053,86183.0,86182.0,0.16710197]
[1742440166898,0.0928063,86182.0,86181.0,0.00664]
[1742440167105,0.0928096,86179.0,86178.0,0.0319]
[1742440167412,0.0928117,86177.0,86172.0,0.092817]
[1742440167609,0.0928117,86177.0,86168.0,0.1234204]
[1742440167816,0.0928117,86177.0,86170.0,0.0928185]
[1742440168113,0.1588117,86177.0,86174.0,0.0464074]
[1742440168313,0.1588117,86177.0,86176.0,0.09298692]
[1742440169414,0.1588117,86177.0,86176.0,0.00017412]
[1742440170406,0.16831932,86177.0,86176.0,0.00017412]
[1742440172005,0.16831932,86177.0,86176.0,0.03237412]
[1742440172916,0.10231932,86177.0,86176.0,0.12518692]
[1742440174336,0.10231932,86177.0,86176.0,0.1250128]
[1742440174612,0.10231932,86177.0,86176.0,0.08891128]
[1742440175909,0.0928117,86177.0,86176.0,0.08891128]
[1742440176107,0.0928117,86177.0,86176.0,0.19891128]
[1742440177617,0.0928117,86177.0,86176.0,0.22931128]
[1742440178519,0.0928117,86177.0,86176.0,0.11931128]
[1742440178819,0.0928117,86177.0,86176.0,0.31931128]
[1742440184624,0.0928117,86177.0,86176.0,0.08891128]
[1742440184822,0.1575117,86177.0,86176.0,0.08891128]
[1742440190031,0.1575117,86177.0,86176.0,0.11961128]
[1742440190722,0.157521,86177.0,86176.0,0.11961128]
[1742440192030,0.157521,86177.0,86176.0,0.1235221]
[1742440193027,0.518321,86177.0,86176.0,0.1235221]
[1742440197128,0.518321,86177.0,86176.0,0.1560221]
[1742440205628,0.518321,86177.0,86176.0,0.11974364]
[1742440205629,0.52788889,86177.0,86176.0,0.11974364]
[1742440206637,0.518321,86177.0,86176.0,0.11974364]
[1742440207141,0.4255,86177.0,86176.0,0.11974364]
[1742440207431,0.3929,86177.0,86176.0,0.21974364]
[1742440207638,0.092821,86177.0,86176.0,0.21974364]
[1742440207835,0.092821,86177.0,86176.0,0.25104364]
[1742440208039,0.092821,86177.0,86176.0,1.75104364]
[1742440208242,0.125421,86177.0,86176.0,0.21974364]
[1742440208740,0.125421,86177.0,86176.0,0.25294364]
[1742440210037,0.125421,86177.0,86176.0,0.15294364]
[1742440211030,0.125421,86177.0,86176.0,0.25294364]
[1742440213237,0.486221,86177.0,86176.0,0.25294364]
[1742440214436,0.125421,86177.0,86176.0,0.25294364]
[1742440214741,0.486221,86177.0,86176.0,0.25294364]
[1742440222345,0.453621,86177.0,86176.0,0.25294364]
[1742440222646,0.092821,86177.0,86176.0,0.25294364]
[1742440223840,0.453621,86177.0,86176.0,0.25294364]
[1742440224243,0.453621,86177.0,86176.0,1.75294364]
[1742440224743,0.485221,86177.0,86176.0,1.75294364]
[1742440225944,0.0928221,86176.0,86175.0,0.05305]
[1742440226145,0.0928221,86176.0,86141.0,0.9275896]
[1742440226146,0.1392821,86149.0,86147.0,0.092849]
[1742440226446,0.39300001,86177.0,86132.0,0.34818968]
[1742440226447,0.0928555,86145.0,86132.0,0.34818968]
[1742440226749,0.2056955,86145.0,86143.0,0.0327]
[1742440227645,0.2056955,86145.0,86144.0,0.30210782]
[1742440227849,0.2056955,86145.0,86144.0,0.33450782]
[1742440228344,0.4072271,86147.0,86146.0,0.0928544]
[1742440228345,0.3608,86147.0,86146.0,0.0928544]
[1742440228746,0.453649,86151.0,86150.0,0.0928501]
[1742440229249,0.3608,86151.0,86150.0,0.0928501]
[1742440229452,0.453649,86151.0,86150.0,0.0928501]
[1742440229651,0.453649,86151.0,86150.0,0.1552501]
[1742440229853,0.453649,86151.0,86150.0,0.1562501]
[1742440231245,0.453649,86151.0,86150.0,0.1572501]
[1742440232552,0.11288,86152.0,86151.0,0.092849]
[1742440232742,0.11288,86152.0,86151.0,0.155249]
[1742440233050,0.11288,86152.0,86151.0,0.245249]
[1742440234649,0.11288,86152.0,86151.0,0.246249]
[1742440235245,0.11288,86152.0,86151.0,0.247249]
[1742440238346,0.2057279,86152.0,86151.0,0.247249]
[1742440238554,0.2057279,86152.0,86151.0,0.157249]
[1742440240253,0.0928879,86152.0,86151.0,0.157249]
[1742440240458,0.2057279,86152.0,86151.0,0.157249]
[1742440241259,0.2057279,86152.0,86151.0,0.127249]
[1742440242753,0.2057279,86152.0,86151.0,0.160249]
[1742440245164,0.2057279,86152.0,86151.0,0.260249]
[1742440246451,0.2382279,86152.0,86151.0,0.260249]
[1742440248251,0.41876672,86158.0,86151.0,0.260249]
[1742440248252,0.00060001,86173.0,86172.0,0.0928264]
[1742440248452,0.4536217,86177.0,86172.0,0.0928264]
[1742440248453,0.031,86176.0,86175.0,0.0928232]
[1742440248862,0.1238221,86176.0,86175.0,0.0928232]
[1742440249157,0.0928242,86174.0,86173.0,0.0008]
[1742440249350,0.0928404,86163.0,86162.0,0.0464179]
[1742440249550,0.3608,86163.0,86162.0,0.0464179]
[1742440249751,0.4536404,86163.0,86162.0,1.5]
[1742440249952,0.0928447,86155.0,86154.0,0.09301992]
[1742440250153,0.4782,86155.0,86154.0,0.09301992]
[1742440250457,0.0966,86156.0,86155.0,0.0928447]
[1742440250960,0.0966,86156.0,86155.0,0.1254447]
[1742440251258,0.5502436,86156.0,86155.0,0.1254447]
[1742440251460,0.0928447,86155.0,86154.0,0.00017412]
[1742440251651,0.0928501,86150.0,86147.0,0.0303]
[1742440251850,0.5712101,86150.0,86147.0,0.1231528]
[1742440252262,0.5712101,86150.0,86147.0,0.0303]
[1742440252454,0.5712101,86150.0,86148.0,0.0928518]
[1742440252651,0.5712101,86150.0,86149.0,0.1218612]
[1742440252854,0.5712101,86150.0,86149.0,0.05931]
[1742440254070,0.5712101,86150.0,86149.0,0.1521612]
[1742440254262,0.5712101,86150.0,86149.0,0.1541612]
[1742440255672,0.5712101,86150.0,86149.0,0.1251512]
[1742440256958,0.9320101,86150.0,86149.0,0.1251512]
[1742440257363,0.0928566,86144.0,86143.0,0.08126]
[1742440257658,0.0464268,86147.0,86128.0,0.0928737]
[1742440257861,0.0464268,86147.0,86129.0,1.5928727]
[1742440257862,0.4536717,86130.0,86129.0,1.5928727]
[1742440258066,0.5707917,86130.0,86129.0,1.5928727]
[1742440258551,0.5677917,86130.0,86129.0,1.5928727]
[1742440258961,0.6738414,86130.0,86129.0,1.5928727]
[1742440259263,0.6738414,86130.0,86129.0,1.5968727]
[1742440259462,0.6738414,86130.0,86129.0,1.6279727]
[1742440259663,0.6738414,86130.0,86129.0,1.6309727]
[1742440260462,0.56952,86130.0,86129.0,1.6309727]
[1742440260858,0.6623917,86130.0,86129.0,1.6309727]
[1742440261053,0.14862,86130.0,86129.0,1.6309727]
[1742440261667,0.14862,86130.0,86129.0,1.7309727]
[1742440262867,0.2414917,86130.0,86129.0,1.6309727]
[1742440263070,0.2728917,86130.0,86129.0,1.6309727]
[1742440264967,0.2414917,86130.0,86129.0,1.6309727]
[1742440265773,0.2414917,86130.0,86129.0,1.7209727]
[1742440266269,0.2414917,86130.0,86129.0,1.6309727]
[1742440266470,0.2414917,86130.0,86129.0,1.6917727]
[1742440266680,0.2414917,86130.0,86129.0,1.6617727]
[1742440266866,0.2414917,86130.0,86129.0,1.8017727]
[1742440267667,0.2414917,86130.0,86129.0,1.6617727]
[1742440268774,0.2414917,86130.0,86129.0,0.1617727]
[1742440268971,0.3060917,86130.0,86129.0,0.1617727]
[1742440269875,0.3060917,86130.0,86129.0,0.1309727]
[1742440270671,0.3060917,86130.0,86129.0,0.1637727]
[1742440270875,0.6668917,86130.0,86129.0,0.1637727]
[1742440271864,0.50942,86130.0,86129.0,0.1637727]
[1742440272372,0.50942,86130.0,86129.0,0.17518049]
[1742440273767,0.4851717,86130.0,86129.0,0.1637727]
[1742440274671,0.3923,86130.0,86129.0,0.1637727]
[1742440275685,0.4851717,86130.0,86129.0,0.1637727]